Cogmind - Beta 14 @@@ ROGUE MODE // 2024.09.16 @ 19:09:26 Player: Coronach Result: Destroyed by Piercing Trap Performance ------------- Evolutions (0) 0 Regions Visited (2) 400 Robots Destroyed (26) 130 Value Destroyed (538) 538 Prototype IDs (0) 0 Alien Tech Used (0) 0 Bonus (0) 0 TOTAL SCORE: 1068 Bonus ------- None Cogmind --------- Core Integrity 0/250 Matter 300/300 Energy 123/125 System Corruption 0% Temperature Cool (1) Movement Treading (240) Ox1 Location -10/Subcaves Parts ------- > --- POWER (1) -------- Light Ion Engine > --- PROPULSION (2) --- Light Treads Subdweller Monowheel > --- UTILITY (2) ------ Medium Storage Unit Improved Terrain Scanner > --- WEAPON (2) ------- Subdweller Beam Cannon Battle Rifle > --- INVENTORY (10) --- Disposable Heat Sink Medium Battery (150) Large Matter Pod (150) Seismic Detector Subdweller Beam Cannon Subdweller Beam Cannon Assault Rifle Grenade Launcher Mining Laser Multitool Peak State ------------ > --- POWER ------------ Light Ion Engine > --- PROPULSION ------- Light Treads Subdweller Monowheel > --- UTILITY ---------- Medium Storage Unit Improved Terrain Scanner > --- WEAPON ----------- Subdweller Beam Cannon Subdweller Machine Gun > --- INVENTORY -------- Disposable Heat Sink Medium Battery Large Matter Pod Seismic Detector Subdweller Beam Cannon Subdweller Beam Cannon Assault Rifle Grenade Launcher Mining Laser Multitool [Rating: 13] Favorites ----------- Power Light Ion Engine Engine Light Ion Engine Power Core Light Nuclear Core Propulsion Wheel Treads Light Treads Leg Aluminum Leg Wheel Wheel Utility Medium Storage Unit Device Improved Terrain Scanner Storage Medium Storage Unit Protection Light Armor Plating Weapon Assault Rifle Energy Gun Particle Gun Energy Cannon Beam Cannon Ballistic Gun Assault Rifle Launcher Grenade Launcher Special Weapon Mining Laser Build | -11 -10 -10 ------- Run | Yrd Mat Sub Slots Evolved . | . . . Power . | . . . Propulsion . | . . . Utility . | . . . Weapon . | . . . Parts Attached 36 | 1 13 22 Power 3 | . 1 2 Engine 2 | . . 2 Core 1 | . 1 . Reactor . | . . . Propulsion 7 | . 3 4 Treads 2 | . . 2 Leg . | . . . Wheel 5 | . 3 2 Hover . | . . . Flight . | . . . Utility 9 | . 2 7 Device 5 | . . 5 Storage 1 | . 1 . Processor . | . . . Hackware . | . . . Protection 3 | . 1 2 Artifact . | . . . Weapon 17 | 1 7 9 Energy Gun 5 | 1 1 3 Energy Cannon 2 | . 1 1 Ballistic Gun 6 | . 3 3 Ballistic Cannon . | . . . Launcher 1 | . 1 . Special Weapon 3 | . 1 2 Impact Weapon . | . . . Slashing Weapon . | . . . Piercing Weapon . | . . . Special Melee Weapon . | . . . Unidentified Prototypes . | . . . Parts Lost 5 | . . 5 Power 1 | . . 1 Propulsion 3 | . . 3 Utility 1 | . . 1 Weapon . | . . . Highest Loss Streak 2 | . . 2 To Critical Strikes . | . . . Average Slot Usage (%) 98 | . 98 98 Engine 9 | . 6 12 Core 4 | . 7 1 Treads 3 | . . 6 Leg 9 | . 18 . Wheel 15 | . 9 20 Device 6 | . . 12 Storage 14 | . 14 14 Protection 7 | . 12 1 Energy Gun 7 | . 7 8 Energy Cannon 4 | . 7 1 Ballistic Gun 13 | . 12 14 Special Weapon 2 | . . 3 Peak Build Rating 13 | 6 11 13 Average Rating 9 | 6 8 10 On Entrance 7 | 6 6 10 Naked Turns . | . . . Heaviest Build 26 | 10 23 26 Greatest Support 20 | 20 20 20 Greatest Overweight (x) 2 | . 1 2 Average Overweight (x) . | . . . Largest Inventory Capacity 10 | 8 10 10 Average Capacity 9 | 8 8 10 Most Carried 10 | 6 10 10 Average Carried 8 | 3 7 9 Final Capacity 10 | 8 10 10 Final Carried 10 | 3 10 10 Class Distribution -------------------- 97% | Mutant Dominant Class ---------------- Mutant | -10/Materials Mutant | -10/Subcaves Resources | -11 -10 -10 ----------- Run | Yrd Mat Sub Matter Collected 932 | 210 433 289 Remotely . | . . . Salvage Created 964 | 117 524 323 Parts 67 | 1 45 21 Haulers Intercepted 1 | . 1 . Recyclers Shooed 2 | 1 1 . Parts Field Recycled . | . . . Retrieved Matter . | . . . Parts Self-Destructed 4 | . . 4 Prevented . | . . . Kills | -11 -10 -10 ------- Run | Yrd Mat Sub Combat Hostiles Destroyed 14 | . 8 6 Guns 7 | . 3 4 Cannons 4 | . 2 2 AOE 3 | . 3 . Classes Destroyed 9 | 2 5 2 Worker 3 | . 3 . Tunneler 2 | 1 1 . Hauler 1 | . 1 . Recycler 3 | 1 2 . Watcher 3 | . 3 . Swarmer 3 | . 3 . Grunt 5 | . 5 . Artisan 1 | . . 1 Subdweller 6 | . . 6 Best Kill Streak 5 | 2 5 2 Combat Bots Only 3 | . 3 2 Max Kills in Single Turn 3 | 1 3 1 Gunslinging . | . . . Exploded 2 | . 2 . Melee . | . . . Uniques/NPCs Destroyed . | . . . Combat | -11 -10 -10 -------- Run | Yrd Mat Sub Hostile Shots Fired 55 | . 26 29 Missed 16 | . 10 6 Damage Taken 772 | . 216 556 Core 252 | . 76 176 Absorbed by Shields . | . . . Core Remaining (%) 100 | 100 . . Volleys Fired 87 | 5 40 42 Largest 2 | 2 2 2 Hottest 110 | 80 100 110 Shots Fired 139 | 10 69 60 Gun 99 | 10 44 45 Cannon 23 | . 15 8 Launcher 4 | . 4 . Special 13 | . 6 7 Kinetic 59 | . 29 30 Thermal 76 | 10 36 30 Explosive 4 | . 4 . Electromagnetic . | . . . Robot Hit Streak 14 | 6 8 14 Robot Miss Streak 3 | 1 3 1 Penetration Max . | . . . Secondary Targets . | . . . Shots Hit Robots 91 | 8 40 43 Core Hits 42 | 3 24 15 Critical Kills . | . . . Critical Parts Destroyed . | . . . Critical Strikes 1 | . . 1 Destroy 1 | . . 1 Melee Attacks . | . . . Impact . | . . . Slashing . | . . . Piercing . | . . . Sneak Attacks . | . . . Combat Hostiles . | . . . Follow-up Attacks . | . . . Damage Inflicted 1642 | 89 889 664 Guns 995 | 89 376 530 Cannons 312 | . 178 134 Explosions 335 | . 335 . Melee . | . . . Ramming . | . . . Kinetic 491 | . 170 321 Thermal 816 | 89 384 343 Explosive 335 | . 335 . Electromagnetic . | . . . Impact . | . . . Slashing . | . . . Piercing . | . . . Highest Corruption . | . . . Average Corruption . | . . . Corruption Purged . | . . . Corruption Blocked . | . . . Overload Shots . | . . . Overflow Damage 53 | . 53 . Projectiles 13 | . 13 . Explosions 40 | . 40 . Melee . | . . . Knockbacks . | . . . Impact . | . . . Kinetic . | . . . Secondary . | . . . Self-Inflicted Damage 18 | . 18 . Shots 1 | . 1 . Rammed . | . . . Targets Rammed . | . . . Kicked . | . . . Crushed . | . . . Highest Temperature 266 | 56 255 266 Average Temperature 108 | 30 113 138 Received Heat Transfer 482 | . 66 416 Effects 1 | . 1 . Interference 1 | . 1 . Siege Activations . | . . . Robots Corrupted . | . . . Combat Hostiles . | . . . Parts Fried . | . . . Impact Corruptions . | . . . Robots Melted . | . . . Combat Hostiles . | . . . Parts Melted . | . . . Heat Transferred 1657 | 200 827 630 Parts Sabotaged . | . . . Parts Stolen . | . . . Parts Stripped . | . . . Power Chain Reactions . | . . . Alert | -11 -10 -10 ------- Run | Yrd Mat Sub Peak Influence 255 | 10 255 . Initial 6 | . 6 . Average 118 | 5 122 . Maximum Alert Level 1 | . 1 . Low Security (%) 92 | 100 92 . Level 1 7 | . 7 . Level 2 . | . . . Level 3 . | . . . Level 4 . | . . . Level 5 . | . . . High Security . | . . . Max Security . | . . . Squads Dispatched . | . . . Investigation . | . . . Extermination . | . . . Reinforcement . | . . . Assault . | . . . Garrison . | . . . Intercept . | . . . Searches Triggered . | . . . Construction Impeded . | . . . Haulers Reinforced . | . . . Active Scanning Responses . | . . . Cargo Convoy Interrupts . | . . . Stealth | -11 -10 -10 --------- Run | Yrd Mat Sub Distress Signals 1 | . 1 . Communications Jammed . | . . . Distress Signals . | . . . Times Spotted 24 | . 18 6 Peak Tracking Total 3 | . 3 2 Tactical Retreats 3 | . 3 . Traps | -11 -10 -10 ------- Run | Yrd Mat Sub Traps Triggered 2 | . 1 1 Indirectly . | . . . Trap Hack Attempts . | . . . Triggered . | . . . Disarmed . | . . . Reprogrammed . | . . . Reused . | . . . Traps Extracted . | . . . Installed . | . . . Triggered . | . . . Machines | -11 -10 -10 ---------- Run | Yrd Mat Sub Machines Disabled . | . . . Max in Single Turn . | . . . Machines Repaired . | . . . Machines Dismantled . | . . . Machines Sabotaged . | . . . Overloaded Fab Kills . | . . . Hacking | -11 -10 -10 --------- Run | Yrd Mat Sub Machines Accessed 6 | . 6 . Terminals 5 | . 5 . Fabricators . | . . . Repair Stations . | . . . Recycling Units 1 | . 1 . Scanalyzers . | . . . Garrison Access . | . . . Total Hacks 31 | . 31 . Successful 19 | . 19 . Failed 12 | . 12 . Catastrophic . | . . . Database Lockouts . | . . . Manual 27 | . 27 . Terminals 28 | . 28 . Fabricators . | . . . Repair Stations . | . . . Recycling Units 3 | . 3 . Scanalyzers . | . . . Garrison Access . | . . . Terminal Hacks 8 | . 8 . Robot Analysis 3 | . 3 . Emergency Access Points 1 | . 1 . Terminal Index 1 | . 1 . Locate Traps 1 | . 1 . Hauler Manifests 1 | . 1 . Zone Layout 1 | . 1 . Fabricator Hacks . | . . . Repair Station Hacks . | . . . Recycling Unit Hacks . | . . . Scanalyzer . | . . . Garrison Access Hacks . | . . . Unauthorized Hacks 11 | . 11 . Terminals 10 | . 10 . Track 2 | . 2 . Botnet 2 | . 2 . Operators 1 | . 1 . Skim 5 | . 5 . Fabricators . | . . . Repair Stations . | . . . Recycling Units 1 | . 1 . Recyclers 1 | . 1 . Scanalyzers . | . . . Garrison Access . | . . . Data Cores Recovered . | . . . Used . | . . . Hacking Detections 6 | . 6 . Full Trace Events . | . . . Feedback Events . | . . . Feedback Blocked . | . . . Robot Schematics Acquired . | . . . Robots Built . | . . . Authchips . | . . . Time . | . . . Total Robot Build Rating . | . . . Part Schematics Acquired . | . . . Parts Built . | . . . Authchips . | . . . Time . | . . . Total Part Build Rating . | . . . Parts Repaired . | . . . Time . | . . . Parts Recycled . | . . . Recycled Matter . | . . . Retrieved Matter . | . . . Retrieved Components . | . . . Parts Scanalyzed . | . . . Part Schematics Acquired . | . . . Parts Damaged . | . . . Bothacking | -11 -10 -10 ------------ Run | Yrd Mat Sub Used RIF Installer . | . . . Robots Hacked . | . . . Non-combat . | . . . Combat . | . . . Robot Hacks Applied . | . . . Relay Couplers Released . | . . . Fabnet Peak Effective % . | . . . Robots Rewired . | . . . Allies Hacked . | . . . Hacks Repelled . | . . . Allies | -11 -10 -10 -------- Run | Yrd Mat Sub Total Allies . | . . . Largest Group . | . . . Highest-Rated Group . | . . . Highest-Rated Ally . | . . . Total Orders . | . . . Ally Attacks . | . . . Total Damage . | . . . Kills . | . . . Allies Corrupted . | . . . Allies Melted . | . . . Intel | -11 -10 -10 ------- Run | Yrd Mat Sub Robot Analysis Total 3 | . 3 . Derelict Logs Recovered 1 | . . 1 Drone Launches . | . . . Drone Recoveries . | . . . Exploration | -11 -10 -10 ------------- Run | Yrd Mat Sub Turns Passed 2002 | 35 968 999 Spaces Moved 1417 | 15 564 838 Core . | . . . Treads 10 | . . 10 Legs 344 | 15 329 . Wheels 1063 | . 235 828 Hover . | . . . Flight . | . . . Fastest Speed 80 | 120 95 80 Average Speed 100 | 120 110 94 Slowest Speed 240 | 120 190 240 Overloaded Moves . | . . . Propulsion Burnouts . | . . . Robots Hopped . | . . . Cave-ins Triggered . | . . . Exploration Rate (%) 36 | 2 68 40 Regions Visited 2 Branch Regions 1 Pre-discovered Areas . | . . . Known Exits Taken 1 | . 1 . Unknown Exits Taken 1 | 1 . . Scrap Searched 3 | . . 3 Spaces Dug 14 | . 14 . Terrain Destroyed 24 | . 22 2 Melee . | . . . Projectile 4 | . 2 2 AOE 20 | . 20 . Terrain Rammed . | . . . Walls Destroyed . | . . . Machines Disabled . | . . . Actions | -11 -10 -10 --------- Run | Yrd Mat Sub Total 1836 | 23 837 976 Wait 231 | . 190 41 Move 1415 | 14 563 838 Hop . | . . . Pick Up 31 | . 15 16 Fast Attach 5 | . 3 2 Attach 8 | . 2 6 Detach 6 | . 4 2 Swap 23 | 1 8 14 Drop 30 | 3 12 15 Fire 87 | 5 40 42 Melee . | . . . Ram . | . . . Kick . | . . . Crush . | . . . Escape Stasis . | . . . Rewire . | . . . Trap . | . . . Miscellaneous . | . . . Route ------- -11/Scrapyard -10/Materials (discovered 4 exits: *Mat x2 / [*Min] / *Sub) -10/Subcaves (discovered 2 exits: Mat / Rec) History --------- Turn | Location | Event 10 | -11/Scrapyard | Discovered new exit (range 3) 36 | -11/Scrapyard | Entered Materials 305 | -10/Materials | Build established: Mutant 472 | -10/Materials | Discovered new exit (range 13) 492 | -10/Materials | Discovered new exit (range 13) 710 | -10/Materials | Discovered new exit (range 16) 760 | -10/Materials | Learned Storage trap positions 808 | -10/Materials | Learned location of 2 exits from Subcaves 848 | -10/Materials | Learned Storage emergency access door positions 878 | -10/Materials | Identified exit to Materials 878 | -10/Materials | Identified exit to Subcaves 899 | -10/Materials | Loaded intel: 7 trap records 931 | -10/Materials | Learned location of 2 exits from Mines 975 | -10/Materials | Learned location of 1 exit from Recycling 1004 | -10/Materials | Entered Subcaves 1005 | -10/Subcaves | Identified exit to Materials 1005 | -10/Subcaves | Identified exit to Recycling 1100 | -10/Subcaves | Shifting Twisted Machinery released Sub. Machine Gun 1425 | -10/Subcaves | Disturbed a concealed Subdweller 1428 | -10/Subcaves | Core integrity fell below 50% 1835 | -10/Subcaves | Learned Materials terminal intel 1954 | -10/Subcaves | Core integrity fell below 20% 2003 | -10/Subcaves | Destroyed by Piercing Trap Last Messages --------------- 01881_ FW-EIY(u) destroyed. 01889_ Acquired Multitool. 01890_ Acquired 10 matter. 01892_ Acquired Wheel. 01894_ Dropped Lgt. Ion Engine. 01897_ Acquired 6 matter. 01951_ Critical hit (Meltdown: +260). 01953_ Wheel destroyed. 01960_ T9-XDW(R) destroyed. 01966_ Acquired Sub. Monowheel. 01967_ Acquired 29 matter. 01969_ Acquired Sub. Beam Cannon. 01977_ F4-9K3(R) destroyed. 01981_ Dropped Sub. Machine Gun. 01982_ Acquired 27 matter. 01987_ Acquired Battle Rifle. 01988_ Acquired 10 matter. 02003_ Triggered Piercing Trap. 02003_ Spikes shoot up from the floor. 02003_ Critical hit (Impale). Map ----- +----------------------------------------------------+ | ##???#?? ????????????????????# " """""????? | | ##????????????????????????????# ""#"""##???? | | #??????????????????? ???? ???" ### "#???#? | | ###?????#???? ??????????????? " #?? " ????? | | ##??????????? ??????????????? " #???"#????? | | ## ###?#????????# ?????????? ?? "##????"????? | | ?# #????????### ????????????? """??????#????? | | ?# ##?????##?## ???????????? """???????????? | | #####??????# ## ??#????? ??? ??????????????? | | ##???????? ???????? ????#? ???????????????? | | #?#?###??? ##???????????????????#?????????? | | ##??# ##??? #####????? ???????????????????? | | ### #?????# #?????????????????????????? | | #??????# #????? ???????????????????? | | #?#####?# #?#??? #???????????????????? | | ## #?# ## #???? #???????????????????? | | ### #??# ## #??? #??????????????????? | | #?#######?#?# "### #??????????????????? | | ##??#######?## &= [ #??????????????????? | | ##?## #??### ###%### # #??????????????????? | | ### ##### ##*|#?????????????????????????? | | ## ## # # [!####?????? ???????????????? | | #??????? ??????????????? | | ### ####???????????????????? | | ### ##### ##### ## # #???????????????????? | | # #???###???#######^@ ##???????????????????? | | ##?#????????????# #????????????????????? | | #?#???????????#?# ?????#?????????????? | | # #??????????#???# ????????????????? | | ### ##????????????## ## # ???????????????? | | ??######??????????????? ##?###? #?????????????? | | ?#???#????????????????## ##????????#?????????????? | | ???????????????????????##????????????????????????? | | ???#????????????#????????????????????????????????? | | ?#??????#????????????????????????????????????????? | | ???????????????#???????????????#?????????????????? | | ?????????????????????????????????????????????????? | | ?????????????????????????????????????????????????? | | ?????????????????????????????????????????????????? | | ?????????????????????????????????????????????????? | | ?????????????????????????????????????????????????? | | ?????????????????????????????????????????????????? | | ?????????????????????????????????????????????????? | | ?????????????????????????????????????????????????? | | ?????????????????????????????????????????????????? | | ?????????????????????????????????????????????????? | | ?????????????????????????????????????????????????? | | ?????????????????????????????????????????????????? | | ?????????????????????????????????????????????????? | | ?????????????????????????????????????????????????? | +----------------------------------------------------+ Best States ------------- Heat Dissipation 25 Coolant Potential 50 Energy Generation 14 Energy Capacity 160 Matter Stores 300 Matter Capacity 300 Sight Range 16 Terrain Scan Range 16 Terrain Scan Density 10 Armor Coverage 150 Evasion (%) 55 Recoil Reduction 1 Item Schematics ----------------- None Robot Schematics ------------------ None Fabricated ------------ Nothing Alien Tech Used ----------------- None Achievements -------------- None Challenges ------------ None Game ------ Seed EnhancedGlidesysTrident Manual? 0 Play Time 00:52:02 Cumulative 245.9 hours Start 2024.09.11 @ 15:07:14 End 2024.09.16 @ 19:09:26 Sessions 3 Manual Loads 0 Difficulty Rogue Special Mode None Game No. 100 Rogue 97 Adventurer 0 Explorer 3 Win Type - Total 3 Types 2/0/0/1/0/0/0/0/0 Lore% 46 Gallery% 65 Achievement% 51 Wizard Run 0 Options --------- Layout 2 ASCII 0 Keyboard 1 Movement Numpad Keybinds 0 Fullscreen 2 Font 24/Terminus Map View 76x44 Zoom Use 0% Tactical HUD 1 Map Filters NONE Filters NONE Steam 1 RUN: 439d9792-6e3c-4c66-8531-cb9a415621e5